Cogmind - Beta 15 @@@ ROGUE MODE // 2025.07.21 @ 07:35:36 Player: Carpathian Result: Destroyed by Y-64 Sentinel with Wave Gun Performance ------------- Evolutions (1) 500 Regions Visited (6) 1200 Robots Destroyed (32) 160 Value Destroyed (873) 873 Prototype IDs (0) 0 Alien Tech Used (0) 0 Bonus (856) 856 TOTAL SCORE: 3589 Bonus ------- Pacifist 200 Follower Combat Kills 56 Met Imprinter 300 Was Imprinted 300 Cogmind --------- Core Integrity 0/400 Matter 276/300 Energy 7/100 System Corruption 0% Temperature Cool (81) Movement Core (550) Ox10 Location -6/Proximity Caves Parts ------- > --- POWER (1) -------- (None) > --- PROPULSION (2) --- (None) > --- UTILITY (4) ------ Large Storage Unit Salvage Targeting Computer Makeshift ECM Suite > --- WEAPON (2) ------- Shotgun > --- INVENTORY (15) --- Ion Engine Light Nuclear Core Angular Momentum Engine Aluminum Leg Aluminum Leg Medium Armor Plating Medium Laser Mining Laser CR-A16's Pointy Stick Peak State ------------ > --- POWER ------------ Light Ion Engine > --- PROPULSION ------- Light Treads Light Treads > --- UTILITY ---------- Large Storage Unit Salvage Targeting Computer Makeshift ECM Suite > --- WEAPON ----------- Spread Laser Makeshift Shrapnel Gun > --- INVENTORY -------- Ion Engine Light Nuclear Core Angular Momentum Engine Aluminum Leg Aluminum Leg Medium Armor Plating Medium Laser Shotgun Mining Laser CR-A16's Pointy Stick [Rating: 17] Favorites ----------- Power Light Ion Engine Engine Light Ion Engine Propulsion Light Treads Treads Light Treads Utility Large Storage Unit Device Makeshift ECM Suite Storage Large Storage Unit Processor Improved Signal Interpreter Protection Light Armor Plating Weapon Spread Laser Energy Gun Spread Laser Ballistic Gun Makeshift Shrapnel Gun Build | -11 -10 -10 -9 -9 -7 -6 ------- Run | Yrd Mat Min Mat Min Zio Pro Slots Evolved 2 | . . . 2 . . . Power . | . . . . . . . Propulsion . | . . . . . . . Utility 2 | . . . 2 . . . Weapon . | . . . . . . . Parts Attached 19 | 5 1 . 8 . 2 3 Power 3 | 1 . . 2 . . . Engine 3 | 1 . . 2 . . . Core . | . . . . . . . Reactor . | . . . . . . . Propulsion 4 | 2 . . 2 . . . Treads 4 | 2 . . 2 . . . Leg . | . . . . . . . Wheel . | . . . . . . . Hover . | . . . . . . . Flight . | . . . . . . . Utility 7 | 1 . . 3 . 2 1 Device 2 | . . . 1 . 1 . Storage 2 | 1 . . . . 1 . Processor 2 | . . . 1 . . 1 Hackware . | . . . . . . . Protection 1 | . . . 1 . . . Artifact . | . . . . . . . Weapon 5 | 1 1 . 1 . . 2 Energy Gun 3 | 1 1 . 1 . . . Energy Cannon . | . . . . . . . Ballistic Gun 2 | . . . . . . 2 Ballistic Cannon . | . . . . . . . Launcher . | . . . . . . . Special Weapon . | . . . . . . . Impact Weapon . | . . . . . . . Slashing Weapon . | . . . . . . . Piercing Weapon . | . . . . . . . Special Melee Weapon . | . . . . . . . Unidentified Prototypes . | . . . . . . . Parts Lost 8 | . . . 2 . . 6 Power 1 | . . . . . . 1 Propulsion 3 | . . . 1 . . 2 Utility 1 | . . . 1 . . . Weapon 3 | . . . . . . 3 Highest Loss Streak 5 | . . . 2 . . 5 To Critical Strikes . | . . . . . . . Average Backups 7 | 2 4 5 6 7 7 8 Power 1 | . 1 1 1 1 1 1 Propulsion 1 | 1 2 2 2 2 2 2 Utility . | . . . . 1 1 1 Weapon 3 | . 1 2 3 3 3 4 Tool/Special . | . . . . . . . Unused Backups 10 | . . . 2 . . 8 Power 3 | . . . . . . 3 Propulsion 2 | . . . . . . 2 Utility 2 | . . . 1 . . 1 Weapon 3 | . . . 1 . . 2 Tool/Special . | . . . . . . . Average Slot Usage (%) 76 | . 74 85 83 66 69 80 Engine 11 | . 14 14 11 11 11 10 Treads 22 | . 28 28 21 22 22 21 Device 5 | . . . 6 . 3 11 Storage 11 | . 14 14 11 11 11 11 Processor 2 | . . . 6 . . 3 Protection 1 | . . . 4 . . . Energy Gun 19 | . 17 28 22 22 22 13 Ballistic Gun 2 | . . . . . . 8 Peak Build Rating 17 | 5 6 6 14 7 11 17 Average Rating 10 | 4 5 6 10 7 8 14 On Entrance 6 | . 5 6 6 7 7 11 Naked Turns . | . . . . . . . Heaviest Build 36 | 10 12 12 17 13 36 36 Greatest Support 40 | 40 40 40 40 40 40 40 Greatest Overweight (x) . | . . . . . . . Average Overweight (x) . | . . . . . . . Largest Inventory Capacity 15 | 8 8 8 8 8 15 15 Average Capacity 11 | 7 8 8 8 8 13 15 Most Carried 10 | 4 5 5 8 7 9 10 Average Carried 7 | 2 4 5 6 7 7 8 Final Capacity 15 | 8 8 8 8 8 15 15 Final Carried 9 | 4 5 5 7 7 9 9 Class Distribution -------------------- 100% | Mutant Dominant Class ---------------- Mutant | -10/Materials Mutant | -10/Mines Mutant | -9/Materials Mutant | -9/Mines Mutant | -7/Zion Mutant | -6/Proximity Caves Resources | -11 -10 -10 -9 -9 -7 -6 ----------- Run | Yrd Mat Min Mat Min Zio Pro Matter Collected 425 | 233 27 . 70 20 20 55 Remotely . | . . . . . . . Salvage Created 768 | . . . 690 . . 78 Parts 52 | . . . 48 . . 4 Haulers Intercepted . | . . . . . . . Recyclers Shooed 1 | . . . 1 . . . Parts Field Recycled . | . . . . . . . Retrieved Matter . | . . . . . . . Parts Self-Destructed 6 | . . . . . . 6 Prevented 7 | . . . . . . 7 Kills | -11 -10 -10 -9 -9 -7 -6 ------- Run | Yrd Mat Min Mat Min Zio Pro Combat Hostiles Destroyed 23 | . . . 19 . . 4 Guns 20 | . . . 16 . . 4 AOE 3 | . . . 3 . . . Classes Destroyed 7 | . . . 7 . . . Worker 1 | . . . 1 . . . Builder 5 | . . . 5 . . . Watcher 3 | . . . 3 . . . Swarmer 7 | . . . 3 . . 4 Grunt 13 | . . . 13 . . . Brawler 1 | . . . 1 . . . Sentry 2 | . . . 2 . . . Best Kill Streak 9 | . . . 9 . . 2 Combat Bots Only 4 | . . . 4 . . 2 Max Kills in Single Turn 4 | . . . 4 . . 1 Gunslinging 1 | . . . 1 . . . Exploded 3 | . . . 3 . . . Melee . | . . . . . . . Uniques/NPCs Destroyed . | . . . . . . . Combat | -11 -10 -10 -9 -9 -7 -6 -------- Run | Yrd Mat Min Mat Min Zio Pro Hostile Shots Fired 125 | . 1 . 57 . . 67 Missed 32 | . . . 12 . . 20 Hits 93 | . 1 . 45 . . 47 Projectile 93 | . 1 . 45 . . 47 Critical Strikes 3 | . . . 2 . . 1 Damage Taken 1392 | . 12 . 576 . . 804 Core 410 | . . . 139 . . 271 Absorbed by Shields . | . . . . . . . Regen/Repaired (Parts) 48 | . . . 48 . . . Core Remaining (%) 100 | 100 . 100 . . . . Volleys Fired 68 | . . . 56 . . 12 Largest 2 | . . . 2 . . 2 Hottest 115 | . . . 115 . . 89 Shots Fired 127 | . . . 104 . . 23 Gun 127 | . . . 104 . . 23 Cannon . | . . . . . . . Launcher . | . . . . . . . Special . | . . . . . . . Kinetic 13 | . . . . . . 13 Thermal 114 | . . . 104 . . 10 Explosive . | . . . . . . . Electromagnetic . | . . . . . . . Robot Hit Streak 12 | . . . 12 . . 6 Robot Miss Streak 12 | . . . 9 . . 12 Penetration Max . | . . . . . . . Secondary Targets 3 | . . . 1 . . 2 Max Gunslinging Chain 1 | . . . 1 . . 1 Shots Hit Robots 102 | . . . 82 . . 20 Core Hits 97 | . . . 79 . . 18 Critical Kills . | . . . . . . . Critical Parts Destroyed . | . . . . . . . Critical Strikes 3 | . . . 3 . . . Burn 3 | . . . 3 . . . Melee Attacks . | . . . . . . . Impact . | . . . . . . . Slashing . | . . . . . . . Piercing . | . . . . . . . Sneak Attacks . | . . . . . . . Combat Hostiles . | . . . . . . . Follow-up Attacks . | . . . . . . . Damage Inflicted 2228 | . . . 1969 . . 259 Guns 1343 | . . . 1084 . . 259 Cannons . | . . . . . . . Explosions 885 | . . . 885 . . . Melee . | . . . . . . . Ramming . | . . . . . . . Kinetic 163 | . . . . . . 163 Thermal 1180 | . . . 1084 . . 96 Explosive 885 | . . . 885 . . . Electromagnetic . | . . . . . . . Impact . | . . . . . . . Slashing . | . . . . . . . Piercing . | . . . . . . . Highest Corruption . | . . . . . . . Average Corruption . | . . . . . . . Corruption Purged . | . . . . . . . Corruption Blocked . | . . . . . . . Overload Shots . | . . . . . . . Overflow Damage 143 | . . . 143 . . . Projectiles . | . . . . . . . Explosions 143 | . . . 143 . . . Melee . | . . . . . . . Knockbacks . | . . . . . . . Impact . | . . . . . . . Kinetic . | . . . . . . . Secondary . | . . . . . . . Self-Inflicted Damage 54 | . . . 54 . . . Shots 1 | . . . 1 . . . Rammed . | . . . . . . . Targets Rammed . | . . . . . . . Kicked . | . . . . . . . Crushed . | . . . . . . . Highest Temperature 496 | . . . 496 . . 133 Average Temperature 124 | . . . 133 . . 53 Received Heat Transfer 387 | . 6 . 255 . . 126 Effects 7 | . . . 7 . . . Shutdowns 1 | . . . 1 . . . Energy Bleed 1 | . . . 1 . . . Interference 5 | . . . 5 . . . Siege Activations . | . . . . . . . Martial Activations . | . . . . . . . Shielding Activations . | . . . . . . . Robots Disrupted . | . . . . . . . Combat Hostiles . | . . . . . . . Robots Corrupted . | . . . . . . . Combat Hostiles . | . . . . . . . Parts Fried . | . . . . . . . Impact Corruptions . | . . . . . . . Robots Melted . | . . . . . . . Combat Hostiles . | . . . . . . . Parts Melted 3 | . . . 3 . . . Heat Transferred 2549 | . . . 2429 . . 120 Parts Sabotaged . | . . . . . . . Parts Stolen . | . . . . . . . Parts Stripped . | . . . . . . . Power Chain Reactions . | . . . . . . . Alert | -11 -10 -10 -9 -9 -7 -6 ------- Run | Yrd Mat Min Mat Min Zio Pro Maximum Alert Level 1 | . . . 1 . . . Low Security (%) 71 | 100 100 100 62 100 . . Level 1 28 | . . . 37 . . . Level 2 . | . . . . . . . Level 3 . | . . . . . . . Level 4 . | . . . . . . . Level 5 . | . . . . . . . High Security . | . . . . . . . Max Security . | . . . . . . . Peak Influence 363 | . . . 363 131 . . Initial 131 | . . . . 131 . . Average 130 | . . . 163 114 . . Influence Increases 868 | . . . 742 . . 126 Destroy 0b10 Robot/C 480 | . . . 380 . . 100 Destroy 0b10 Robot/NC 45 | . . . 45 . . . Destroy Leader 126 | . . . 106 . . 20 Allied During Kill 6 | . . . . . . 6 Successful Hack 3 | . . . 3 . . . Disable Machine 120 | . . . 120 . . . Destroy Structure 13 | . . . 13 . . . Lose Combat Pursuer 75 | . . . 75 . . . Influence Decreases 868 | . . . 404 247 91 126 Entered New Map 298 | . . . . 207 91 . Time Decay 510 | . . . 384 40 . 86 Lost Part 60 | . . . 20 . . 40 Squads Dispatched 6 | . . . 5 . . 1 Investigation 1 | . . . 1 . . . Extermination . | . . . . . . . Reinforcement 4 | . . . 4 . . . Assault 1 | . . . . . . 1 Garrison . | . . . . . . . Intercept . | . . . . . . . Searches Triggered . | . . . . . . . Construction Impeded 1 | . . . 1 . . . Haulers Reinforced . | . . . . . . . Active Scanning Responses . | . . . . . . . Cargo Convoy Interrupts . | . . . . . . . Stealth | -11 -10 -10 -9 -9 -7 -6 --------- Run | Yrd Mat Min Mat Min Zio Pro Distress Signals 4 | . . . 4 . . . Communications Jammed . | . . . . . . . Distress Signals . | . . . . . . . Times Spotted 50 | . 3 . 29 . . 18 Peak Tracking Total 11 | . 3 . 6 . . 11 Tactical Retreats 5 | . . . 4 . . 1 Traps | -11 -10 -10 -9 -9 -7 -6 ------- Run | Yrd Mat Min Mat Min Zio Pro Traps Triggered 1 | . . . 1 . . . Indirectly . | . . . . . . . Trap Hack Attempts . | . . . . . . . Triggered . | . . . . . . . Disarmed . | . . . . . . . Reprogrammed . | . . . . . . . Reused . | . . . . . . . Traps Extracted . | . . . . . . . Installed . | . . . . . . . Triggered . | . . . . . . . Machines | -11 -10 -10 -9 -9 -7 -6 ---------- Run | Yrd Mat Min Mat Min Zio Pro Machines Disabled 8 | . . . 8 . . . Max in Single Turn 4 | . . . 4 . . . Machines Repaired . | . . . . . . . Machines Dismantled . | . . . . . . . Machines Sabotaged . | . . . . . . . Overloaded Fab Kills . | . . . . . . . Hacking | -11 -10 -10 -9 -9 -7 -6 --------- Run | Yrd Mat Min Mat Min Zio Pro Machines Accessed 2 | . 1 . 1 . . . Terminals 1 | . 1 . . . . . Fabricators . | . . . . . . . Repair Stations 1 | . . . 1 . . . Recycling Units . | . . . . . . . Scanalyzers . | . . . . . . . Garrison Access . | . . . . . . . Total Hacks 6 | . 3 . 3 . . . Successful 4 | . 2 . 2 . . . Failed 2 | . 1 . 1 . . . Catastrophic . | . . . . . . . Database Lockouts . | . . . . . . . Manual . | . . . . . . . Terminals 3 | . 3 . . . . . Fabricators . | . . . . . . . Repair Stations 3 | . . . 3 . . . Recycling Units . | . . . . . . . Scanalyzers . | . . . . . . . Garrison Access . | . . . . . . . Terminal Hacks 2 | . 2 . . . . . Record 2 | . 2 . . . . . Fabricator Hacks . | . . . . . . . Repair Station Hacks 2 | . . . 2 . . . Scan Component 1 | . . . 1 . . . Repair 1 | . . . 1 . . . Recycling Unit Hacks . | . . . . . . . Scanalyzer . | . . . . . . . Garrison Access Hacks . | . . . . . . . Unauthorized Hacks . | . . . . . . . Terminals . | . . . . . . . Fabricators . | . . . . . . . Repair Stations . | . . . . . . . Recycling Units . | . . . . . . . Scanalyzers . | . . . . . . . Garrison Access . | . . . . . . . Data Cores Recovered . | . . . . . . . Used . | . . . . . . . Hacking Detections 1 | . . . 1 . . . Full Trace Events 1 | . . . 1 . . . Feedback Events . | . . . . . . . Feedback Blocked . | . . . . . . . Robot Schematics Acquired 3 | . . . . . 3 . Robots Built . | . . . . . . . Authchips . | . . . . . . . Time . | . . . . . . . Total Robot Build Rating . | . . . . . . . Part Schematics Acquired 13 | . . . . . 13 . Parts Built . | . . . . . . . Authchips . | . . . . . . . Time . | . . . . . . . Total Part Build Rating . | . . . . . . . Parts Repaired 1 | . . . 1 . . . Time 26 | . . . 26 . . . Parts Recycled . | . . . . . . . Recycled Matter . | . . . . . . . Retrieved Matter . | . . . . . . . Retrieved Components . | . . . . . . . Parts Scanalyzed . | . . . . . . . Part Schematics Acquired . | . . . . . . . Parts Damaged . | . . . . . . . Bothacking | -11 -10 -10 -9 -9 -7 -6 ------------ Run | Yrd Mat Min Mat Min Zio Pro Used RIF Installer . | . . . . . . . Robots Hacked . | . . . . . . . Non-combat . | . . . . . . . Combat . | . . . . . . . Robot Hacks Applied . | . . . . . . . Relay Couplers Released . | . . . . . . . Fabnet Peak Effective % . | . . . . . . . Robots Rewired . | . . . . . . . Allies Hacked . | . . . . . . . Hacks Repelled . | . . . . . . . Allies | -11 -10 -10 -9 -9 -7 -6 -------- Run | Yrd Mat Min Mat Min Zio Pro Total Allies 4 | . . . . . 4 . Largest Group 4 | . . . . . 4 4 Highest-Rated Group 158 | . . . . . 158 158 Highest-Rated Ally 40 | . . . . . 40 40 Total Orders . | . . . . . . . Ally Attacks 16 | . . . . . . 16 Total Damage 302 | . . . . . . 302 Kills 1 | . . . . . . 1 Allies Corrupted . | . . . . . . . Allies Melted . | . . . . . . . Intel | -11 -10 -10 -9 -9 -7 -6 ------- Run | Yrd Mat Min Mat Min Zio Pro Active Infowar (turns) 1863 | . . . 543 . 442 878 Sensors 543 | . . . 543 . . . ECM 1320 | . . . . . 442 878 Robot Analysis Total . | . . . . . . . Derelict Logs Recovered 1 | . . . . . 1 . Drone Launches . | . . . . . . . Drone Recoveries . | . . . . . . . Exploration | -11 -10 -10 -9 -9 -7 -6 ------------- Run | Yrd Mat Min Mat Min Zio Pro Turns Passed 3594 | 86 139 40 1065 84 1302 878 Spaces Moved 1810 | 50 86 26 374 53 798 423 Core 6 | 6 . . . . . . Treads 1804 | 44 86 26 374 53 798 423 Legs . | . . . . . . . Wheels . | . . . . . . . Hover . | . . . . . . . Flight . | . . . . . . . Fastest Speed 50 | 50 160 160 160 160 160 160 Average Speed 159 | 146 160 160 160 160 160 160 Slowest Speed 160 | 160 160 160 160 160 160 160 Overloaded Moves . | . . . . . . . Propulsion Burnouts . | . . . . . . . Robots Hopped . | . . . . . . . Potential Cave-ins . | . . . . . . . Cave-ins Triggered . | . . . . . . . Exploration Rate (%) 33 | 5 29 12 41 16 83 51 Regions Visited 6 Branch Regions 4 Pre-discovered Areas 2 | . . . . . 2 . Known Exits Taken . | . . . . . . . Unknown Exits Taken 6 | 1 1 1 1 1 1 . Scrap Searched 3 | . . . . 1 2 . Spaces Dug . | . . . . . . . Terrain Destroyed 14 | . . . 14 . . . Melee . | . . . . . . . Projectile . | . . . . . . . AOE 14 | . . . 14 . . . Terrain Rammed . | . . . . . . . Walls Destroyed . | . . . . . . . Machines Disabled . | . . . . . . . Actions | -11 -10 -10 -9 -9 -7 -6 --------- Run | Yrd Mat Min Mat Min Zio Pro Total 2391 | 63 88 25 738 52 823 602 Wait 460 | . . . 281 . 19 160 Move 1804 | 49 85 25 373 52 797 423 Hop . | . . . . . . . Pick Up 29 | 9 2 . 11 . 4 3 Fast Attach 2 | . . . 2 . . . Attach 13 | 5 1 . 3 . 1 3 Detach . | . . . . . . . Swap 6 | . . . 4 . 1 1 Drop 9 | . . . 8 . 1 . Fire 68 | . . . 56 . . 12 Melee . | . . . . . . . Ram . | . . . . . . . Kick . | . . . . . . . Crush . | . . . . . . . Escape Stasis . | . . . . . . . Rewire . | . . . . . . . Trap . | . . . . . . . Miscellaneous . | . . . . . . . Route ------- -11/Scrapyard -10/Materials -10/Mines -9/Materials -9/Mines -7/Zion -6/Proximity Caves History --------- Turn | Location | Event 41 | -11/Scrapyard | Discovered new exit (range 14) 87 | -11/Scrapyard | Entered Materials 175 | -10/Materials | Discovered new exit (range 15) 226 | -10/Materials | Entered Mines 252 | -10/Mines | Discovered new exit (range 10) 266 | -10/Mines | Entered Materials 266 | -9/Materials | Evolved 2 slots: Utility x2 300 | -9/Materials | Build established: Mutant 481 | -9/Materials | Repaired Lgt. Armor Plating 1303 | -9/Materials | Discovered new exit (range 13) 1331 | -9/Materials | Entered Mines 1404 | -9/Mines | A Derelict revealed a hidden shortcut to a safe place 1415 | -9/Mines | Entered Zion 2002 | -7/Zion | Met Imprinter 2031 | -7/Zion | Imprinted 2033 | -7/Zion | Declared Zion's savior 2196 | -7/Zion | Learned location of Extension (-6) 2513 | -7/Zion | Learned location of 1 exit from Lower Caves 2545 | -7/Zion | Found CR-A16's Pointy Stick 2680 | -7/Zion | Discovered new exit (range 16) 2717 | -7/Zion | Entered Proximity Caves 2717 | -6/Proximity Caves | Accompanied by 4 allies 2924 | -6/Proximity Caves | Spotted B-75 Beast 2972 | -6/Proximity Caves | Allies destroyed B-75 Beast 3237 | -6/Proximity Caves | Core integrity fell below 50% 3462 | -6/Proximity Caves | Received a Behemoth hack from an annoying Tinkerer 3580 | -6/Proximity Caves | Attracted the attention of an 0b10 outpost 3588 | -6/Proximity Caves | Core integrity fell below 20% 3595 | -6/Proximity Caves | Destroyed by Y-64 Sentinel with Wave Gun Last Messages --------------- 03584_ Y-64 Sentinel: "REQUESTING BACKUP." 03584_ Slug penetrates S-27 Virus. 03584_ S-27 Virus suffers critical hit (Destroy). 03585_ S-27 Virus destroyed. 03585_ Switching to secondary target: Y-64 Sentinel. 03587_ JG-M6R(c): "Well, I haven't tried it, but that's the theory." 03587_ Lgt. Ion Engine destroyed. 03587_ Penetrated by Slug. 03587_ Lgt. Treads destroyed. 03589_ C-30 ARC bursts open, deploying its payload. 03589_ G-67 Veteran unfolds itself. 03589_ G-50 Soldier unfolds itself. 03589_ B-48 Gladiator unfolds itself. 03589_ M-28 Smith unfolds itself. 03590_ VTOL Module fries itself beyond repair. 03590_ Slug penetrates S-27 Virus. 03592_ Spread Laser destroyed. 03593_ Penetrated by Slug. 03594_ Mak. Shrapnel Gun destroyed. 03594_ Lgt. Treads destroyed. Map ----- +----------------------------------------------------+ | #### ##?????????????????????????????????? | | =% % ## ##????????????????????????????????? | | ### ##????? #????????????????????????? | | #?# ### ##???????#????????????????? | | ##?# % # ? ??? ???????????????? | | ##??# ## ? ???????????????? | | #??# ## ##### " ? ????????????????? | | ??# ## #? #???# "" """ ????????????????? | | ??## #### #?# ?? "" """" ?????????????????? | | ???# ###??# #??#####?# " "" ?????????????????? | | ##?##?????# #?????#### ??????????????????? | | #????##?## #????## ## ??????????????????? | | #???## ## #???## # ### #??????????????????? | | #??## ##??# ## #??????????????????? | | #### #### # #???##?????????????? | | ## ## # #??# ##????????????? | | ## ### ####?????????? | | ## ###???????? | | ### ## ######## #??????? | | ##?# #?# % #??????# #????? | | ??# ??# #??????# ## ##########????? | | ??# ???# #" ????# ### ##????????????? | | ??# ???# # #" ???# c g g #????????????? | | ??# #????# ## ###bl### g m #????????????? | | ??# ?????## ## # Yssg # b ### #????????????? | | ??# ???????# @ #???#????????????? | | ???????????## ##????????????????? | | ????????????## ##########?????????????????? | | ?????????????## ????????????????????????????? | | ??????????????### ?????????????????????????????? | | ????????????????# ?????????????????????????????? | | ????????????????? ?????????????????????????????? | | ????????????????? #????????????????????????????? | | ?????????????????####????????????????????????????? | | ?????????????????????????????????????????????????? | | ?????????????????????????????????????????????????? | | ?????????????????????????????????????????????????? | | ?????????????????????????????????????????????????? | | ?????????????????????????????????????????????????? | | ?????????????????????????????????????????????????? | | ?????????????????????????????????????????????????? | | ?????????????????????????????????????????????????? | | ?????????????????????????????????????????????????? | | ?????????????????????????????????????????????????? | | ?????????????????????????????????????????????????? | | ?????????????????????????????????????????????????? | | ?????????????????????????????????????????????????? | | ?????????????????????????????????????????????????? | | ?????????????????????????????????????????????????? | | ?????????????????????????????????????????????????? | +----------------------------------------------------+ Best States ------------- Heat Dissipation 28 Energy Generation 10 Energy Capacity 250 Matter Stores 300 Matter Capacity 300 Sight Range 16 Robot Scan Range 15 Terrain Scan Density 10 ECM Strength 2 Armor Coverage 150 Evasion (%) 40 Recoil Reduction 2 Salvage Targeting 1 Item Schematics ----------------- Thermic Laser | -7/Zion | Archive Transmission Jammer | -7/Zion | Archive Lrn. Proton Cannon | -7/Zion | Archive Flak Gun | -7/Zion | Archive Energy Well | -7/Zion | Archive Nuclear Pulse Thruster | -7/Zion | Archive Imp. Deuterium Engine | -7/Zion | Archive Power Sword | -7/Zion | Archive Gravmag System | -7/Zion | Archive Adv. Plasma Cannon | -7/Zion | Archive Flexi-carbon Leg | -7/Zion | Archive Adv. Terrain Scan Processor | -7/Zion | Archive Gatling Laser | -7/Zion | Archive Robot Schematics ------------------ A-02 Transporter | -7/Zion | Archive B-36 Bruiser | -7/Zion | Archive O-24 Administrator | -7/Zion | Archive Fabricated ------------ Nothing Repaired ---------- Lgt. Armor Plating | 46% | -9/Materials Alien Tech Used ----------------- None Achievements -------------- None Challenges ------------ None Game ------ Seed ReflectiveMappingAirjet Manual? 0 Play Time 00:20:13 Cumulative 38.3 hours Start 2025.07.21 @ 07:13:53 End 2025.07.21 @ 07:35:36 Sessions 1 Manual Loads 0 Difficulty Rogue Special Mode None Game No. 199 Rogue 199 Adventurer 0 Explorer 0 Win Type - Total 0 Types 0/0/0/0/0/0/0/0/0/0 Lore% 12 Gallery% 26 Achievement% 21 Wizard Run 0 Options --------- Layout 0 ASCII 0 Keyboard 0 Movement Arrows Keybinds 0 Fullscreen 2 Font 24/Cog Map View 76x50 Zoom Use 0% Tactical HUD 1 Map Filters NONE Filters NONE Steam 1 RUN: e3370a22-9168-4d8b-a78c-6ce8b0ee477a